bitfinex-derivatives/quotes_ETHF0:USTF0_20251107
["timestamp","ask_amount","ask_price","bid_price","bid_amount"]
[1762543164600,0.3072,3429.4,3429.3,0.47485978]
[1762543164800,4.72551778,3429.4,3429.3,0.47485978]
[1762543167207,4.72551778,3429.4,3429.3,0.00214978]
[1762543167405,4.72551778,3429.4,3428.4,9.158]
[1762543167406,0.5929,3429.0,3428.9,0.47277]
[1762543168308,0.5929,3429.0,3428.9,0.4757085]
[1762543169107,5.00684263,3429.0,3428.9,3.85e-05]
[1762543169314,5.00684263,3429.0,3428.9,0.4728085]
[1762543170611,4.63504263,3429.0,3428.9,0.4728085]
[1762543170806,4.41394263,3429.0,3428.9,0.8488085]
[1762543171606,4.41394263,3429.0,3428.9,0.4728085]
[1762543172007,0.5672,3429.5,3429.4,0.4727]
[1762543172408,4.98114263,3429.5,3429.4,0.4727]
[1762543173512,5.69207015,3429.5,3429.4,0.4727]
[1762543174020,4.98114263,3429.5,3429.4,0.4727]
[1762543174417,5.69229235,3429.5,3429.4,0.4727]
[1762543174721,4.98114263,3429.5,3429.4,0.4727]
[1762543177119,0.3718,3429.4,3429.3,0.4727]
[1762543177418,4.78574263,3429.4,3429.3,0.4727]
[1762543178321,0.1954,3430.0,3429.4,0.376]
[1762543178516,5.49973687,3429.9,3429.8,0.47264]
[1762543178722,0.3718,3429.8,3429.7,0.47266]
[1762543178923,5.49973687,3429.8,3429.7,0.47266]
[1762543180316,0.5929,3429.0,3428.6,0.00437515]
[1762543180615,0.5929,3429.0,3428.9,0.47277]
[1762543180822,2.44179268,3429.0,3428.9,0.47277]
[1762543181021,0.3718,3428.7,3428.6,0.47718515]
[1762543181215,1.09447569,3428.7,3428.6,0.00437515]
[1762543181416,1.09447569,3428.7,3427.6,0.47295]
[1762543181417,0.361,3427.7,3427.6,0.47295]
[1762543181724,0.3646282,3427.7,3427.6,0.00239734]
[1762543182622,0.0036282,3427.7,3427.6,0.00239734]
[1762543183524,0.3646282,3427.7,3427.6,0.00239734]
[1762543185721,0.0036282,3427.7,3427.6,0.00239734]
[1762543186924,0.3646282,3427.7,3427.6,0.00239734]
[1762543187325,0.0036282,3427.7,3427.6,0.81454734]
[1762543187921,0.5606,3428.5,3428.4,0.47283]
[1762543188125,1.28734868,3428.5,3428.4,0.47283]
[1762543188928,1.29017304,3428.5,3428.4,0.47283]
[1762543189836,1.29017304,3428.5,3427.6,0.00239734]
[1762543189837,0.361,3427.7,3427.6,0.47534734]
[1762543190329,1.08830687,3427.7,3427.6,0.47534734]
[1762543195531,0.72730687,3427.7,3427.6,0.81454734]
[1762543196025,0.72730687,3427.7,3427.6,0.47534734]
[1762543196230,1.08830687,3427.7,3427.6,0.47534734]
[1762543197130,0.72730687,3427.7,3427.6,0.88394734]
[1762543197533,0.4137,3428.3,3428.2,0.47286]
[1762543197737,1.14151122,3428.3,3428.2,0.47286]
[1762543198135,0.4137,3428.2,3427.6,0.00239734]
[1762543198335,0.2446,3428.0,3427.6,0.00239734]
[1762543198531,0.72791984,3427.9,3427.8,0.4086]
[1762543198835,0.61612436,3428.5,3428.4,0.47284]
[1762543199031,1.3440009,3428.5,3428.4,0.47284]
[1762543199231,0.4137,3428.2,3427.6,0.00239734]
[1762543199432,0.4137,3427.7,3427.6,0.00239734]
[1762543199631,0.4137,3427.7,3427.6,0.47534734]
[1762543200230,1.24194632,3428.5,3428.4,0.47284]
[1762543200433,1.34414567,3428.5,3428.4,0.47284]
[1762543200637,0.4137,3427.7,3427.6,0.47534734]
[1762543201237,0.2446,3428.0,3427.9,0.47291]
[1762543201441,0.4137,3428.4,3428.3,0.47285]
[1762543201642,1.14177959,3428.4,3428.3,0.47285]
[1762543201939,0.72807959,3428.4,3428.3,0.47285]
[1762543202239,0.4137,3427.8,3427.7,0.47293]
[1762543202634,0.4137,3427.4,3427.3,0.00437515]
[1762543202829,1.14191571,3427.4,3427.3,0.47736515]
[1762543203336,0.2446,3427.5,3427.4,0.47297]
[1762543203640,1.38648588,3427.5,3427.4,0.476181]
[1762543204338,0.6583,3428.0,3427.9,0.47291]
[1762543204639,1.3864334,3428.0,3427.9,0.47291]
[1762543204836,0.4137,3427.9,3427.8,0.47291]
[1762543205038,0.6583,3427.5,3427.4,0.003211]
[1762543205236,0.6583,3428.0,3427.9,0.47291]
[1762543205837,0.6583,3427.5,3427.4,0.003211]
[1762543206138,0.2446,3428.0,3427.9,0.47291]
[1762543206443,0.6583,3427.5,3427.4,0.003211]
[1762543206830,0.6583,3427.5,3427.4,0.476181]
[1762543207942,0.6583,3427.5,3427.4,0.003211]
[1762543208137,0.71757,3427.5,3426.0,2.28984982]
[1762543208335,0.4137,3426.8,3426.7,0.47306]
[1762543209032,0.2446,3427.0,3426.7,0.00255066]
[1762543209344,0.4137,3425.8,3425.7,9.55121]
[1762543209639,0.6583,3426.5,3426.4,0.47311]
[1762543209839,0.4137,3426.9,3426.8,0.47305]
[1762543210038,1.14281967,3426.9,3426.8,0.47305]
[1762543210243,0.4137,3426.9,3426.8,0.47305]
[1762543210436,1.1452063,3426.9,3426.8,0.47677872]
[1762543211343,0.41585029,3426.9,3426.8,0.47677872]
[1762543212438,0.00215029,3426.9,3426.8,8.88537872]
[1762543212640,0.6583,3428.0,3427.9,0.47291]
[1762543213341,0.6583,3428.0,3427.0,0.2327]
[1762543213545,0.6583,3428.0,3427.9,0.47291]
[1762543213741,0.66205166,3428.0,3427.9,0.47291]
[1762543214645,0.00375166,3428.0,3427.9,0.88151]
[1762543214836,0.4137,3428.9,3428.8,0.47278]
[1762543215032,0.4137,3428.7,3427.6,2.09262497]
[1762543215235,0.4137,3428.6,3428.5,0.47281]
[1762543215838,0.41636989,3428.6,3428.5,0.47281]
[1762543216033,0.4137,3428.3,3427.6,0.00437515]
[1762543216237,0.4137,3428.2,3427.6,0.00437515]
[1762543216437,0.4137,3428.2,3428.1,0.47288]
[1762543217144,0.2446,3427.8,3427.6,0.47732515]
[1762543217346,0.4137,3428.3,3428.2,0.47286]
[1762543217546,0.4137,3428.1,3428.0,0.47288]
[1762543217946,0.2446,3428.4,3427.6,0.47732515]
[1762543217947,0.4137,3427.7,3427.6,0.47732515]
[1762543219448,0.4137,3427.7,3427.6,0.00437515]
[1762543220646,0.2446,3427.8,3427.7,0.47293]
[1762543221048,0.6583,3427.8,3427.7,0.47293]
[1762543221250,0.4137,3427.7,3427.6,0.00437515]
[1762543225548,0.2446,3427.8,3427.7,0.47293]
[1762543225748,0.6583,3428.0,3427.9,0.47289]
[1762543226250,0.2446,3428.0,3427.8,0.47291]
[1762543226449,0.3517,3427.9,3427.8,0.47291]
[1762543226851,0.3517,3427.7,3427.6,0.47732515]
[1762543227251,0.5545,3427.5,3427.4,0.47297]
[1762543228158,0.3517,3427.4,3426.8,0.00372872]
[1762543228453,0.3517,3427.4,3427.3,0.47299]
[1762543228852,3.0507,3427.9,3427.8,0.47292]
[1762543229152,0.3517,3427.9,3427.8,0.47292]
[1762543230560,0.2446,3428.0,3427.9,0.4729]
[1762543230750,0.5963,3428.0,3427.9,0.4729]
[1762543231652,0.5963,3428.0,3427.9,0.47291]
[1762543232659,0.3517,3427.6,3427.5,0.47296]
[1762543233453,1.08054089,3427.9,3427.8,0.47292]
[1762543233655,0.2446,3428.0,3427.9,0.47291]
[1762543233862,0.5963,3428.0,3427.9,0.47291]
[1762543234356,0.2446,3428.4,3427.9,0.81621]
[1762543234560,0.00266989,3428.6,3428.5,0.47282]
[1762543235156,0.00266989,3428.6,3428.5,1.04236459]
[1762543235354,0.00266989,3428.6,3428.5,0.81612]
[1762543235557,0.00437515,3428.9,3428.5,1.02292]
[1762543235758,0.3517,3429.9,3429.8,0.47264]
[1762543236065,0.2028,3430.5,3430.4,0.47256]
[1762543236267,0.3517,3430.2,3429.0,0.0549]
[1762543236458,0.5545,3430.0,3429.0,0.0549]
[1762543236761,0.00437515,3429.8,3429.2,0.00437515]
[1762543236957,0.00437515,3429.8,3429.7,0.47266]
[1762543237266,0.35607515,3429.8,3429.7,0.47266]
[1762543237968,0.35607515,3429.8,3429.7,0.46527]
[1762543238559,0.3517,3429.6,3429.5,0.47267]
[1762543239054,0.00437515,3429.8,3429.5,0.47267]
[1762543239258,0.35607515,3429.8,3429.7,0.47266]
[1762543239458,0.3517,3429.3,3429.2,0.00437515]
[1762543239667,0.3517,3429.3,3429.2,0.47710515]
[1762543239868,0.3517,3429.3,3429.2,0.00437515]
[1762543240267,0.2028,3429.5,3429.0,0.00357932]
[1762543240268,0.3517,3429.1,3429.0,0.00357932]
[1762543240960,0.2013,3429.0,3428.2,0.22697588]
[1762543241163,0.3579,3428.8,3428.7,0.47279]
[1762543241660,0.5592,3429.0,3428.9,0.47277]
[1762543241864,0.2013,3429.0,3428.9,0.47277]
[1762543242066,0.5592,3429.0,3428.9,0.47497133]
[1762543242657,0.5592,3429.0,3428.9,0.00220133]
[1762543243568,1.03195,3429.0,3428.9,1.33e-06]
[1762543243772,0.3579,3428.6,3428.5,0.47281]
[1762543244156,0.3579,3428.4,3428.3,0.00437515]
[1762543244769,0.3579,3428.4,3428.3,0.48041071]
[1762543246468,0.5592,3428.5,3428.4,0.47283]
[1762543246970,0.3579,3428.4,3428.3,0.00756071]
[1762543247269,0.2013,3428.5,3428.4,0.47283]
[1762543247468,0.5592,3428.5,3428.4,0.47283]
[1762543247676,0.3579,3428.4,3428.3,0.00756071]
[1762543248172,0.3579,3428.4,3428.3,0.48041071]
[1762543248564,0.3579,3428.9,3428.8,0.47278]
[1762543249468,0.3579,3428.6,3428.5,0.47282]
[1762543249665,0.47277,3428.9,3428.5,0.47282]
[1762543249871,0.2028,3429.5,3428.3,0.00756071]
[1762543249872,0.5607,3429.5,3429.4,0.4727]
[1762543251570,0.5607,3429.5,3429.3,0.4727]
[1762543251870,0.3579,3429.4,3429.3,0.4727]
[1762543255177,0.3579,3429.2,3428.3,0.00756071]
[1762543255474,0.3579,3428.9,3428.8,0.47278]
[1762543259273,0.1965,3428.5,3428.4,0.47283]
[1762543259579,0.3292,3428.4,3428.3,0.00756071]
[1762543259971,0.80203,3428.4,3428.3,0.00756071]
[1762543260171,0.3292,3428.4,3428.3,0.00756071]
[1762543260581,0.80203,3428.4,3428.3,0.00756071]
[1762543260971,0.3292,3428.4,3428.3,0.48041071]
[1762543261281,0.1965,3428.5,3428.4,0.47283]
[1762543261779,0.3292,3428.4,3428.3,0.00756071]
[1762543262079,0.3292,3428.4,3428.3,0.48041071]
[1762543262278,0.3292,3428.4,3428.3,0.00756071]
[1762543262482,0.80203,3428.4,3428.3,0.00756071]
[1762543262879,0.3292,3428.4,3428.3,0.00756071]
[1762543263570,0.3292,3428.4,3428.3,0.48041071]
[1762543265276,0.80203,3428.4,3428.3,0.00756071]
[1762543265582,0.3292,3428.4,3428.3,0.48041071]
[1762543266674,0.80203,3428.4,3428.3,0.00756071]
[1762543267077,0.3292,3428.4,3428.3,0.48041071]
[1762543268074,0.80203,3428.4,3428.3,0.48041071]
[1762543268272,1.51639983,3428.4,3428.3,0.48041071]
[1762543268674,1.04356983,3428.4,3428.3,0.48041071]
[1762543269184,0.71436983,3428.4,3428.3,0.48041071]
[1762543269485,0.5305,3429.0,3428.9,0.47277]
[1762543269781,1.24500676,3429.0,3428.9,0.47277]
[1762543271589,0.5305,3429.0,3428.9,0.47277]
[1762543272083,0.71447968,3429.0,3428.9,0.47277]
[1762543272278,0.3292,3429.4,3429.3,0.47271]
[1762543272476,0.2028,3429.5,3428.5,0.1901]
[1762543272674,0.2028,3429.5,3429.4,0.4727]
[1762543272882,0.91718288,3429.5,3429.4,0.4727]
[1762543273083,0.33357515,3429.8,3429.7,0.47266]
[1762543273385,0.3292,3429.6,3429.5,0.47267]
[1762543273679,0.3292,3429.6,3428.3,0.00756071]
[1762543273680,0.3292,3429.3,3429.2,0.47271]
[1762543274683,0.1965,3429.5,3429.4,0.4727]
[1762543275484,0.1965,3429.5,3428.5,0.1901]
[1762543275485,0.00437515,3429.8,3429.7,0.77965]
[1762543275985,0.33357515,3429.8,3429.7,0.47265]
[1762543276575,0.33357515,3429.8,3428.5,0.1901]
[1762543276576,0.80186,3429.7,3429.6,0.47266]
[1762543277085,0.66918,3429.5,3428.5,0.1901]
[1762543277282,0.5257,3429.5,3429.4,0.4727]
[1762543278086,0.80203,3428.4,3428.3,0.00756071]
[1762543278883,0.5257,3428.0,3427.0,0.1901]
[1762543279080,0.5257,3428.0,3427.9,0.4729]
[1762543279280,0.5257,3428.0,3427.0,0.1901]
[1762543279480,0.3292,3427.6,3426.6,2.08824982]
[1762543279689,0.3292,3427.1,3427.0,0.47303]
[1762543279880,0.3292,3426.7,3426.6,0.00291447]
[1762543280486,0.1965,3427.2,3426.9,0.47304]
[1762543280680,0.1965,3427.2,3426.6,0.00291447]
[1762543280681,0.1965,3427.2,3427.0,0.47302]
[1762543281881,0.00437515,3427.4,3426.6,0.00291447]
[1762543281882,0.00437515,3427.4,3427.3,0.47299]
[1762543283183,0.33357515,3427.4,3427.2,0.473]
[1762543283590,0.1965,3427.2,3426.6,0.00291447]
[1762543284088,0.1965,3427.2,3427.0,0.47302]
[1762543284492,0.47302,3427.1,3426.6,0.00291447]
[1762543284796,0.3292,3426.9,3426.6,0.00291447]
[1762543285091,0.3292,3426.9,3426.6,0.47599447]
[1762543285490,0.3292,3426.7,3426.6,0.47599447]
[1762543285993,0.3292,3426.7,3426.6,0.00291447]
[1762543287282,0.80227,3426.7,3426.6,0.00291447]
[1762543287479,0.1763,3426.6,3425.0,0.1901]
[1762543287691,0.2938,3425.9,3425.8,0.47319]
[1762543288287,0.1763,3426.0,3425.9,0.47318]
[1762543288489,0.2938,3426.3,3426.2,0.47313]
[1762543288791,0.47303,3427.0,3426.0,0.1106]
[1762543288985,0.71320355,3427.1,3426.0,0.1106]
[1762543289183,0.76682,3427.1,3426.0,0.1106]
[1762543289384,0.76682,3427.1,3426.8,0.47305]
[1762543289697,0.2938,3426.8,3426.7,0.47306]
[1762543290290,0.2938,3426.8,3426.6,0.47308]
[1762543290794,0.2938,3426.5,3425.9,0.00345031]
[1762543291190,0.2938,3426.5,3426.4,0.47311]
[1762543292195,0.2938,3427.1,3426.0,0.1106]
[1762543292805,0.76681,3427.1,3426.8,0.47305]
[1762543292994,0.2938,3427.1,3427.0,0.47303]
[1762543293293,0.1965,3427.2,3427.1,0.47301]
[1762543293494,0.47302,3427.1,3426.0,0.1106]
[1762543293885,0.47302,3427.1,3426.8,0.47305]
[1762543294091,0.2938,3427.0,3426.9,0.47304]
[1762543294799,0.1965,3427.2,3427.1,0.47301]
[1762543295095,0.1965,3427.2,3427.0,0.47303]
[1762543295596,0.4903,3427.2,3427.1,0.47301]
[1762543295795,0.9633,3427.2,3427.0,0.47303]
[1762543295994,0.2938,3426.9,3426.8,0.47304]
[1762543296695,0.4903,3427.2,3427.1,0.47301]
[1762543297096,0.4903,3427.2,3426.0,0.1106]
[1762543297097,0.29817515,3427.4,3427.3,0.47299]
[1762543297692,0.2938,3427.3,3427.2,0.47299]
[1762543298190,0.76679,3427.3,3427.2,0.47299]
[1762543298390,0.2938,3427.3,3427.2,0.47299]
[1762543298797,0.76682,3427.1,3427.0,0.47302]
[1762543298991,0.76688,3426.8,3426.7,0.47306]
[1762543299189,0.4701,3426.5,3426.4,0.4731]
[1762543299599,0.1763,3426.5,3426.4,0.4731]
[1762543300195,0.29817515,3427.4,3427.3,0.47299]
[1762543300596,0.2757,3427.0,3426.0,0.1106]
[1762543300798,0.4394,3427.0,3426.9,0.47304]
[1762543301199,0.28007515,3427.4,3427.3,0.47299]
[1762543303403,0.28007515,3427.4,3426.0,0.1106]
[1762543303606,0.28007515,3427.4,3427.3,0.47299]
[1762543304098,0.75306515,3427.4,3427.3,0.47299]
[1762543304701,0.7487,3427.3,3427.2,0.47299]
[1762543304901,0.74873,3427.2,3426.0,0.1106]
[1762543305105,0.91245,3427.0,3426.9,0.47303]
[1762543305599,0.4394,3427.0,3426.9,0.47303]
[1762543306205,0.91243,3427.0,3426.9,0.47303]
[1762543307002,0.91243,3427.0,3426.7,0.47306]
[1762543307003,0.74876,3426.8,3426.7,0.47306]
[1762543307296,1.46713871,3426.8,3426.7,0.47306]
[1762543307495,0.1637,3427.0,3426.9,0.47304]
[1762543307814,0.71833344,3427.3,3427.2,0.473]
[1762543308006,0.71833344,3427.3,3426.5,0.0844]
[1762543308207,0.2757,3426.7,3426.6,0.47307]
[1762543309005,1.03952196,3427.3,3426.0,0.1106]
[1762543309201,1.19189557,3427.2,3427.0,0.47303]
[1762543309400,1.03952196,3427.3,3427.1,0.76161]
[1762543309601,0.71939561,3427.2,3427.1,0.76161]
[1762543309808,1.19239561,3427.2,3427.1,0.2886]
[1762543310008,0.71939561,3427.2,3427.1,0.76161]
[1762543310508,1.19239561,3427.2,3427.1,0.76161]
[1762543310707,0.71939561,3427.2,3427.1,0.76161]
[1762543311394,0.71939561,3427.2,3427.1,0.2886]
[1762543311602,1.19239561,3427.2,3427.1,0.76161]
[1762543311802,0.71939561,3427.2,3426.5,0.0844]
[1762543312008,0.47303,3427.0,3426.9,0.47304]
[1762543312209,0.71939561,3427.0,3426.9,0.47304]
[1762543312803,0.71939561,3427.0,3426.9,0.76164]
[1762543313108,1.03952196,3428.5,3428.4,0.2886]
[1762543313298,0.47281,3428.7,3428.5,0.2886]
[1762543313500,0.47279,3428.7,3428.5,0.2886]
[1762543313707,1.03952196,3428.9,3428.0,0.1197]
[1762543313908,1.03952196,3428.9,3428.5,0.47282]
[1762543314103,0.47278,3428.8,3428.5,0.00237622]
[1762543314303,0.4728,3428.7,3428.5,0.00237622]
[1762543315297,0.47278,3428.8,3428.7,0.2886]
[1762543315497,0.00223413,3428.9,3428.8,0.2886]
[1762543316904,0.4728,3428.7,3428.5,0.00237622]
[1762543317503,0.47279,3428.7,3428.5,0.00237622]
[1762543317805,0.47279,3428.8,3428.5,0.47519622]
[1762543318007,0.00223413,3428.9,3428.5,0.47519622]
[1762543318304,0.47500413,3428.9,3428.6,0.4728]
[1762543318504,0.74421,3428.6,3428.5,0.00237622]
[1762543318708,0.1643,3428.0,3427.3,0.47299]
[1762543319212,0.47294,3427.8,3427.4,0.47298]
[1762543319408,0.47295,3427.7,3426.6,0.23658898]
[1762543319604,0.1643,3428.0,3426.6,0.23658898]
[1762543319605,0.1643,3428.0,3427.5,0.47297]
[1762543319805,0.1643,3428.0,3427.4,0.47298]
[1762543320011,0.47294,3427.8,3427.6,0.47296]
[1762543320211,0.1643,3428.0,3427.0,0.17403957]
[1762543320710,0.1643,3428.5,3427.0,0.17403957]
[1762543320908,0.1643,3428.5,3427.8,0.47292]
[1762543321101,0.47288,3428.2,3427.9,0.47291]
[1762543321412,0.00223413,3428.9,3428.8,0.2771]
[1762543321605,0.00223413,3428.9,3428.0,0.087]
[1762543321905,0.1643,3428.4,3427.8,0.47292]
[1762543322104,0.47292,3427.9,3426.6,2.131]
[1762543322298,0.1643,3428.4,3426.6,2.35830621]
[1762543322501,0.47288,3428.2,3427.9,0.47291]
[1762543322708,0.00223413,3428.9,3427.9,0.4729]
[1762543322911,0.4729,3428.0,3427.7,0.47294]
[1762543323107,0.1643,3428.4,3426.6,2.35830621]
[1762543323306,0.1643,3428.4,3426.5,2.16775823]
[1762543323307,0.47294,3427.7,3426.5,0.0744]
[1762543323507,0.1643,3427.8,3427.0,0.00213957]
[1762543323811,0.47298,3427.5,3427.1,0.47301]
[1762543324011,0.1643,3427.8,3427.0,0.00213957]
[1762543324213,0.47303,3427.1,3427.0,0.00213957]
[1762543324712,0.63731,3427.2,3427.0,0.00213957]
[1762543325407,0.47302,3427.1,3427.0,0.00213957]
[1762543325606,0.74442,3427.1,3427.0,0.00213957]
[1762543326517,0.1643,3426.6,3425.5,4.18635823]
[1762543326717,0.47314,3426.3,3425.5,2.093]
[1762543327013,0.1643,3426.0,3424.9,2.09335823]
[1762543327716,0.00324696,3426.0,3425.9,0.2771]
[1762543328715,0.00324696,3426.0,3425.4,0.1582]
[1762543329007,0.00324696,3426.0,3425.8,0.4732]
[1762543329211,0.00324696,3426.0,3425.9,0.2771]
[1762543329615,0.00324696,3426.0,3425.9,0.75029]
[1762543329616,4.696e-05,3426.0,3425.9,0.75029]
[1762543329812,0.63731,3427.2,3426.0,0.1324]
[1762543330317,1.03952196,3427.7,3427.0,0.47303]
[1762543330508,1.75336458,3427.6,3426.0,0.1324]
[1762543330709,0.473,3427.3,3426.0,0.1324]
[1762543330916,0.00437515,3427.1,3426.0,0.1324]
[1762543331309,0.47740515,3427.1,3426.0,0.1324]
[1762543331609,0.47739515,3427.1,3426.0,0.1324]
[1762543331812,0.00437515,3427.1,3426.0,0.1324]
[1762543332011,0.1643,3426.6,3425.6,0.00437515]
[1762543332413,0.1643,3426.0,3425.6,0.00437515]
[1762543332815,0.47322,3425.7,3425.6,0.00437515]
[1762543333211,0.4732,3425.8,3425.6,0.00437515]
[1762543333407,0.2714,3425.7,3425.6,0.00437515]
[1762543333613,0.74461,3425.7,3425.6,0.00437515]
[1762543334917,0.1643,3426.0,3425.6,0.00437515]
[1762543335216,0.1643,3427.2,3425.7,8.0]
[1762543335410,0.00359672,3427.6,3427.0,0.75013]
[1762543336117,0.47739515,3427.1,3426.0,0.1324]
[1762543336417,0.00437515,3427.1,3427.0,0.47303]
[1762543336715,0.47303,3427.0,3426.0,0.1324]
[1762543336912,0.00437515,3427.1,3426.0,0.1324]
[1762543337513,0.47309,3426.6,3426.0,0.1324]
[1762543337810,0.00437515,3427.1,3425.7,7.717]
[1762543338015,0.1643,3426.6,3425.6,0.00437515]
[1762543338211,0.47319,3425.9,3425.6,0.00437515]
[1762543338413,0.47321,3425.7,3425.6,0.00437515]
[1762543338612,0.63748,3426.0,3425.6,0.00437515]
[1762543338813,0.1643,3426.6,3425.6,0.00437515]
[1762543339216,0.47314,3426.2,3425.9,0.47317]
[1762543339408,0.1643,3426.6,3425.6,0.00437515]
[1762543339717,0.74461,3425.7,3425.6,0.00437515]
[1762543340820,0.2714,3425.7,3425.6,0.47759515]
[1762543341018,0.1643,3426.0,3425.6,0.00437515]
[1762543341219,0.1643,3426.6,3425.6,0.00437515]
[1762543341421,0.47315,3426.2,3425.6,0.00437515]
[1762543341717,0.47313,3426.3,3425.6,0.00437515]
[1762543342225,0.1643,3426.6,3425.6,0.00437515]
[1762543342526,0.00437515,3427.1,3425.6,0.00437515]
[1762543342717,0.00437515,3427.1,3426.9,0.47304]
[1762543342914,0.00437515,3427.1,3426.0,0.1324]
[1762543343722,0.47306,3426.8,3426.0,0.1324]
[1762543343923,0.1643,3426.6,3425.6,0.00437515]
[1762543344118,0.00437515,3427.1,3425.6,0.00437515]
[1762543344618,0.1643,3426.6,3425.6,0.00437515]
[1762543344816,0.47314,3426.3,3425.6,0.00437515]
[1762543345018,0.47315,3426.2,3425.9,0.47318]
[1762543345226,0.2714,3425.7,3425.6,0.00437515]
[1762543345528,0.1643,3426.0,3425.7,0.47321]
[1762543345816,0.4732,3425.8,3425.6,0.00437515]
[1762543346125,0.4732,3425.8,3425.6,0.47759515]
[1762543346327,0.47318,3425.9,3425.7,0.47321]
[1762543346520,0.47318,3425.9,3425.6,0.47759515]
[1762543346820,0.1643,3426.0,3425.7,0.4732]
[1762543347026,0.2548,3425.7,3425.6,0.00437515]
[1762543347419,0.72801,3425.7,3425.6,0.00437515]
[1762543349629,0.2548,3425.7,3425.6,0.00437515]
[1762543349830,0.72802,3425.7,3425.6,0.00437515]
[1762543350632,0.2548,3425.7,3425.6,0.00437515]
[1762543350821,0.72802,3425.7,3425.6,0.00437515]
[1762543351130,0.2548,3425.7,3425.6,0.47761515]
[1762543351628,0.72802,3425.7,3425.6,0.00437515]
[1762543352530,1.44234663,3425.7,3425.6,0.00437515]
[1762543353318,0.2548,3425.7,3425.6,0.00437515]
[1762543353631,0.88449,3426.0,3425.9,0.47319]
[1762543353827,0.4113,3426.0,3425.9,0.47319]
[1762543354429,0.71468349,3426.5,3425.6,0.00437515]
[1762543354627,0.62968,3426.0,3425.9,0.47318]
[1762543354828,0.62968,3426.0,3425.6,0.00437515]
[1762543355130,0.1565,3426.0,3425.9,0.47319]
[1762543355829,1.20382196,3426.6,3426.0,0.47317]
[1762543356024,0.47316,3426.2,3426.0,0.47317]
[1762543356223,0.47316,3426.2,3426.1,0.47317]
[1762543356619,0.47314,3426.3,3426.2,0.47315]
[1762543356825,0.7153955,3426.5,3425.6,0.00437515]
[1762543357026,0.47315,3426.3,3425.6,0.00437515]
[1762543357223,0.47316,3426.2,3425.6,0.00437515]
[1762543357422,1.1885555,3426.2,3426.0,0.47317]
[1762543357625,0.7153955,3426.1,3425.6,0.00437515]
[1762543357831,0.47321,3425.9,3425.6,0.47760515]
[1762543358132,0.62968,3426.0,3425.9,0.47319]
[1762543358331,0.47315,3426.2,3426.0,0.47317]
[1762543358533,0.47315,3426.2,3426.1,0.47317]
[1762543358832,0.1565,3426.0,3425.9,0.47319]
[1762543359028,0.71360989,3426.2,3426.1,0.47316]
[1762543359232,0.47315,3426.2,3426.1,0.47316]
[1762543359435,0.47317,3426.1,3426.0,0.47318]
[1762543359731,0.47315,3426.2,3426.1,0.47315]
[1762543359936,0.47317,3426.1,3426.0,0.47318]
[1762543360141,0.2548,3426.3,3426.2,0.47314]
[1762543360431,0.47317,3426.1,3425.6,0.00437515]
[1762543360628,0.47318,3426.0,3425.9,0.47318]
[1762543361230,0.61398,3426.0,3425.9,0.47318]
[1762543361434,1.32758158,3426.0,3425.9,0.47319]
[1762543361830,0.85440158,3426.0,3425.9,0.47319]
[1762543362034,0.1408,3426.0,3425.9,0.47319]
[1762543362737,0.61398,3426.0,3425.9,0.47319]
[1762543362941,1.32755738,3426.0,3425.9,0.47319]
[1762543363241,0.1408,3426.0,3425.9,0.47319]
[1762543364932,0.61398,3426.0,3425.6,0.00437515]
[1762543365136,0.71552,3425.7,3425.6,0.00437515]
[1762543365533,1.42913812,3425.7,3425.6,0.00437515]
[1762543367543,1.42913812,3425.7,3425.6,0.47760515]
[1762543367935,0.71361812,3425.7,3425.6,0.72000515]
[1762543368137,0.1408,3426.0,3425.9,0.47319]
[1762543368339,0.1408,3426.0,3425.6,0.00437515]
[1762543368736,0.85533688,3426.0,3425.9,0.47319]
[1762543368943,0.70865,3426.2,3426.1,0.47316]
[1762543369233,1.42318291,3426.2,3426.1,0.47316]
[1762543369440,0.47317,3426.1,3426.0,0.47318]
[1762543369641,1.18770291,3426.1,3425.6,0.00437515]
[1762543369840,0.71453291,3426.0,3425.6,0.00437515]
[1762543370046,1.03952196,3426.5,3425.6,0.00437515]
[1762543370244,0.2355,3426.2,3426.1,0.47315]
[1762543370446,0.95003252,3426.2,3426.1,0.47315]
[1762543370748,0.71452284,3426.4,3426.3,0.47314]
[1762543370944,0.00437515,3427.1,3427.0,0.47304]
[1762543370945,0.23987515,3427.1,3427.0,0.47304]
[1762543371147,0.71885032,3427.1,3426.0,0.1461]
[1762543371340,0.70856,3426.9,3426.8,0.47306]
[1762543371538,0.94997517,3426.9,3426.8,0.47306]
[1762543371739,0.94997517,3426.9,3426.3,13.1]
[1762543371941,0.00437515,3427.1,3425.6,0.00437515]
[1762543371942,0.47313,3426.4,3426.2,0.47314]
[1762543372247,0.2355,3426.3,3426.2,0.47314]
[1762543372444,0.1384,3426.5,3426.4,0.47312]
[1762543374845,1.56143746,3426.5,3426.4,0.47312]
[1762543375046,1.56144746,3426.5,3426.3,0.47313]
[1762543375350,0.47312,3426.4,3426.3,0.47313]
[1762543375553,0.1384,3426.5,3426.4,0.47312]
[1762543375745,0.1384,3426.5,3425.7,13.1]
[1762543376048,0.85274501,3426.5,3425.7,13.1]
[1762543376247,0.47314,3426.4,3425.7,13.1]
[1762543376441,0.47313,3426.4,3425.7,13.1]
[1762543376648,0.2355,3426.2,3426.1,0.47316]
[1762543377041,0.61152,3426.5,3426.3,0.47313]
[1762543377244,0.61152,3426.5,3426.4,0.47312]
[1762543377245,0.3789,3426.5,3426.4,0.47312]
[1762543377542,0.3789,3426.5,3425.6,0.00437515]
[1762543377543,1.09310167,3426.5,3425.8,0.47321]
[1762543377746,0.143,3426.0,3425.6,0.00437515]
[1762543377946,0.2405,3425.8,3425.7,0.47322]
[1762543378148,0.71372,3425.7,3425.6,0.00437515]
[1762543380046,0.2405,3425.7,3425.6,0.00437515]
[1762543380243,0.2405,3425.7,3425.6,0.47760515]
[1762543380444,0.71408293,3425.9,3425.6,0.47760515]